[Event "*** Titled Tuesday Blitz"]
[Site "Chess.com"]
[Date "2021.02.16"]
[Round "6"]
[White "Spriteball"]
[Black "FontVella8"]
[Result "0-1"]
[WhiteElo "2366"]
[BlackElo "2566"]
[TimeControl "180+1"]
[EndTime "11:08:06 PST"]
[Termination "FontVella8 won by resignation"]

1. e4 {[%clk 0:03:00.9]} 1... e6 {[%clk 0:03:00.1]} 2. d4 {[%clk 0:03:00.7]}
2... d5 {[%clk 0:03:00.6]} 3. e5 {[%clk 0:02:59.8]} 3... c5 {[%clk 0:03:00.1]}
4. c3 {[%clk 0:03:00.2]} 4... Nc6 {[%clk 0:03:00.7]} 5. f4 {[%clk 0:03:00]} 5...
cxd4 {[%clk 0:02:57.9]} 6. cxd4 {[%clk 0:03:00]} 6... Qb6 {[%clk 0:02:55.7]} 7.
Nf3 {[%clk 0:02:58.7]} 7... f6 {[%clk 0:02:56.1]} 8. Nc3 {[%clk 0:02:49.8]} 8...
Bb4 {[%clk 0:02:54.6]} 9. Be2 {[%clk 0:02:46]} 9... fxe5 {[%clk 0:02:44]} 10.
fxe5 {[%clk 0:02:46.2]} 10... Nge7 {[%clk 0:02:44.4]} 11. O-O {[%clk 0:02:45.5]}
11... O-O {[%clk 0:02:43.4]} 12. a3 {[%clk 0:02:39.5]} 12... Bxc3 {[%clk
0:02:42]} 13. bxc3 {[%clk 0:02:40.4]} 13... Ng6 {[%clk 0:02:34.7]} 14. Kh1
{[%clk 0:02:37.1]} 14... Bd7 {[%clk 0:02:33.5]} 15. a4 {[%clk 0:02:35.2]} 15...
Na5 {[%clk 0:02:30.7]} 16. Ba3 {[%clk 0:02:34.8]} 16... Rfc8 {[%clk 0:02:19.3]}
17. Rb1 {[%clk 0:02:33.2]} 17... Qd8 {[%clk 0:02:16.7]} 18. Bb4 {[%clk
0:02:24.2]} 18... Nc4 {[%clk 0:02:12.2]} 19. Bxc4 {[%clk 0:02:11.2]} 19... Rxc4
{[%clk 0:02:11]} 20. Nd2 {[%clk 0:02:11.4]} 20... Rcc8 {[%clk 0:01:43.2]} 21. c4
{[%clk 0:01:44]} 21... dxc4 {[%clk 0:01:36.9]} 22. Ne4 {[%clk 0:01:43.8]} 22...
Bc6 {[%clk 0:01:24.7]} 23. Nd6 {[%clk 0:01:43.5]} 23... Rc7 {[%clk 0:01:24.6]}
24. Qc2 {[%clk 0:01:28.5]} 24... Qg5 {[%clk 0:01:19.2]} 25. Qf2 {[%clk
0:00:57.8]} 25... h6 {[%clk 0:00:53.7]} 26. Nxc4 {[%clk 0:00:48.1]} 26... Nh4
{[%clk 0:00:44.1]} 27. Ne3 {[%clk 0:00:43.3]} 27... Be4 {[%clk 0:00:34.9]} 28.
Rbc1 {[%clk 0:00:39.6]} 28... Rac8 {[%clk 0:00:27.3]} 29. Rxc7 {[%clk
0:00:38.8]} 29... Rxc7 {[%clk 0:00:27.8]} 30. Bd6 {[%clk 0:00:35.7]} 30... Rc3
{[%clk 0:00:18]} 31. Qf7+ {[%clk 0:00:20.4]} 31... Kh7 {[%clk 0:00:16.9]} 32.
Be7 {[%clk 0:00:20.6]} 32... Bxg2+ {[%clk 0:00:15.2]} 33. Kg1 {[%clk 0:00:19.9]}
33... Qxe3+ {[%clk 0:00:15.1]} 34. Qf2 {[%clk 0:00:17.2]} 34... Bxf1 {[%clk
0:00:09.5]} 35. Kxf1 {[%clk 0:00:13]} 0-1

[Event "*** Titled Tuesday Blitz"]
[Site "Chess.com"]
[Date "2021.02.16"]
[Round "6"]
[White "eightbyeightchess"]
[Black "ajedrez1101"]
[Result "1-0"]
[WhiteElo "2386"]
[BlackElo "2117"]
[TimeControl "180+1"]
[EndTime "11:08:06 PST"]
[Termination "eightbyeightchess won on time"]

1. e4 {[%clk 0:03:00.9]} 1... g6 {[%clk 0:02:58.9]} 2. Nf3 {[%clk 0:03:00.4]}
2... Bg7 {[%clk 0:02:58]} 3. Bc4 {[%clk 0:03:00.2]} 3... d6 {[%clk 0:02:47]} 4.
d4 {[%clk 0:02:57.6]} 4... Nf6 {[%clk 0:02:46.8]} 5. Nc3 {[%clk 0:02:54.8]} 5...
O-O {[%clk 0:02:45.8]} 6. Bg5 {[%clk 0:02:53.3]} 6... Bg4 {[%clk 0:02:36.5]} 7.
h3 {[%clk 0:02:52.2]} 7... Bxf3 {[%clk 0:02:33.3]} 8. Qxf3 {[%clk 0:02:53.1]}
8... Nc6 {[%clk 0:02:33.7]} 9. Rd1 {[%clk 0:02:49.2]} 9... h6 {[%clk 0:02:12.2]}
10. Bf4 {[%clk 0:02:43.5]} 10... Nh5 {[%clk 0:01:48.7]} 11. Be3 {[%clk
0:02:34.8]} 11... e5 {[%clk 0:01:46.9]} 12. Ne2 {[%clk 0:02:19.2]} 12... exd4
{[%clk 0:01:16.5]} 13. Nxd4 {[%clk 0:02:18]} 13... Ne5 {[%clk 0:01:14.2]} 14.
Qe2 {[%clk 0:02:11.2]} 14... Qf6 {[%clk 0:00:57.4]} 15. O-O {[%clk 0:02:00]}
15... Nf4 {[%clk 0:00:51.8]} 16. Bxf4 {[%clk 0:01:57.8]} 16... Qxf4 {[%clk
0:00:51.7]} 17. Bb3 {[%clk 0:01:55.5]} 17... a6 {[%clk 0:00:44.4]} 18. g3 {[%clk
0:01:40.7]} 18... Qf6 {[%clk 0:00:43.3]} 19. f4 {[%clk 0:01:40.6]} 19... Nc6
{[%clk 0:00:41.2]} 20. Nxc6 {[%clk 0:01:40.6]} 20... bxc6 {[%clk 0:00:42.1]} 21.
c3 {[%clk 0:01:40.3]} 21... c5 {[%clk 0:00:32.3]} 22. Kh2 {[%clk 0:01:27.8]}
22... a5 {[%clk 0:00:31.8]} 23. e5 {[%clk 0:01:21.3]} 23... dxe5 {[%clk
0:00:30.2]} 24. fxe5 {[%clk 0:01:22.2]} 24... Qe7 {[%clk 0:00:15.9]} 25. Qe4
{[%clk 0:01:04.6]} 25... Kh7 {[%clk 0:00:12.3]} 26. Bxf7 {[%clk 0:00:58.4]}
26... Rxf7 {[%clk 0:00:11.6]} 27. Qxa8 {[%clk 0:00:58.1]} 27... Rxf1 {[%clk
0:00:09.3]} 28. Rxf1 {[%clk 0:00:59]} 28... Qxe5 {[%clk 0:00:09]} 29. Rf2 {[%clk
0:00:52.3]} 29... Qe3 {[%clk 0:00:08.8]} 30. Qf3 {[%clk 0:00:51.6]} 30... Qe5
{[%clk 0:00:08.7]} 31. Re2 {[%clk 0:00:50.1]} 31... Qd6 {[%clk 0:00:08.1]} 32.
h4 {[%clk 0:00:48.7]} 32... h5 {[%clk 0:00:07.3]} 33. Kg2 {[%clk 0:00:48.7]}
33... a4 {[%clk 0:00:07.3]} 34. Qe4 {[%clk 0:00:48.5]} 34... a3 {[%clk
0:00:06.5]} 35. bxa3 {[%clk 0:00:48.2]} 35... Bxc3 {[%clk 0:00:06.4]} 36. Qe7+
{[%clk 0:00:47.8]} 36... Kh6 {[%clk 0:00:05.3]} 37. Qxd6 {[%clk 0:00:43.6]}
37... cxd6 {[%clk 0:00:05.4]} 38. Re6 {[%clk 0:00:42.2]} 38... d5 {[%clk
0:00:05.4]} 39. Kf3 {[%clk 0:00:42.5]} 39... d4 {[%clk 0:00:04.3]} 40. Rc6
{[%clk 0:00:41.2]} 40... Bb2 {[%clk 0:00:01.2]} 41. Rxc5 {[%clk 0:00:41.1]}
41... Bxa3 {[%clk 0:00:01.8]} 42. Rd5 {[%clk 0:00:41.2]} 42... Bb2 {[%clk
0:00:01.8]} 43. a4 {[%clk 0:00:42.1]} 43... Bc3 {[%clk 0:00:01.9]} 44. Ke4
{[%clk 0:00:41.2]} 1-0

[Event "*** Titled Tuesday Blitz"]
[Site "Chess.com"]
[Date "2021.02.16"]
[Round "6"]
[White "Smirnov_Pavel"]
[Black "IMRosen"]
[Result "0-1"]
[WhiteElo "2872"]
[BlackElo "2636"]
[TimeControl "180+1"]
[EndTime "11:08:07 PST"]
[Termination "IMRosen won on time"]

1. d4 {[%clk 0:03:00.9]} 1... d5 {[%clk 0:02:59.5]} 2. c4 {[%clk 0:03:00.1]}
2... e6 {[%clk 0:03:00]} 3. Nf3 {[%clk 0:02:58]} 3... Nf6 {[%clk 0:03:00.3]} 4.
Nc3 {[%clk 0:02:58.6]} 4... a6 {[%clk 0:03:00.8]} 5. e3 {[%clk 0:02:57.8]} 5...
Be7 {[%clk 0:02:59.3]} 6. b3 {[%clk 0:02:55.2]} 6... O-O {[%clk 0:02:56.9]} 7.
Bb2 {[%clk 0:02:54.5]} 7... b6 {[%clk 0:02:56.1]} 8. cxd5 {[%clk 0:02:52.2]}
8... exd5 {[%clk 0:02:55.6]} 9. Bd3 {[%clk 0:02:53.1]} 9... Bd6 {[%clk
0:02:55.7]} 10. Ne5 {[%clk 0:02:44.4]} 10... c5 {[%clk 0:02:33.3]} 11. O-O
{[%clk 0:02:41]} 11... Bb7 {[%clk 0:02:33.7]} 12. Qf3 {[%clk 0:02:26.5]} 12...
Nbd7 {[%clk 0:02:28.6]} 13. Ne2 {[%clk 0:02:17.5]} 13... Re8 {[%clk 0:02:24.8]}
14. Nxd7 {[%clk 0:01:43.8]} 14... Qxd7 {[%clk 0:02:23.6]} 15. dxc5 {[%clk
0:01:36.4]} 15... d4 {[%clk 0:02:23.5]} 16. Qf5 {[%clk 0:01:28.5]} 16... Qxf5
{[%clk 0:02:20.6]} 17. Bxf5 {[%clk 0:01:25.6]} 17... bxc5 {[%clk 0:02:19]} 18.
Rfd1 {[%clk 0:01:16.8]} 18... Rad8 {[%clk 0:02:17.2]} 19. Rac1 {[%clk
0:00:38.5]} 19... dxe3 {[%clk 0:02:16.1]} 20. f3 {[%clk 0:00:38.3]} 20... Nd5
{[%clk 0:02:08.8]} 21. g3 {[%clk 0:00:18.2]} 21... Ne7 {[%clk 0:02:00]} 22. Be4
{[%clk 0:00:14.2]} 22... Bxe4 {[%clk 0:01:53.5]} 23. fxe4 {[%clk 0:00:15.1]}
23... Nc6 {[%clk 0:01:54.1]} 24. Rd3 {[%clk 0:00:09.8]} 24... Rxe4 {[%clk
0:01:50.5]} 25. Rcd1 {[%clk 0:00:09.4]} 25... Be7 {[%clk 0:01:50.8]} 26. Rxd8+
{[%clk 0:00:08.2]} 26... Bxd8 {[%clk 0:01:47.5]} 27. Rd6 {[%clk 0:00:07.7]}
27... Re6 {[%clk 0:01:44.5]} 28. Rd5 {[%clk 0:00:07.8]} 28... Be7 {[%clk
0:01:38.2]} 29. Kf1 {[%clk 0:00:06.6]} 29... Nb4 {[%clk 0:01:27.7]} 30. Rd7
{[%clk 0:00:05.3]} 30... Nxa2 {[%clk 0:01:14.7]} 31. Nf4 {[%clk 0:00:04.9]}
31... Re4 {[%clk 0:01:12]} 32. Nd5 {[%clk 0:00:04.9]} 32... Bf8 {[%clk
0:00:55.3]} 33. Ke2 {[%clk 0:00:05]} 33... Nb4 {[%clk 0:00:52]} 34. Nc3 {[%clk
0:00:05]} 34... Re6 {[%clk 0:00:50.5]} 35. Ra7 {[%clk 0:00:04.8]} 35... h5
{[%clk 0:00:44.8]} 36. Ra8 {[%clk 0:00:03.5]} 36... f6 {[%clk 0:00:44]} 37. Nd1
{[%clk 0:00:03.2]} 37... Nd5 {[%clk 0:00:41.3]} 38. Rd8 {[%clk 0:00:02]} 38...
Ne7 {[%clk 0:00:29.8]} 0-1

[Event "*** Titled Tuesday Blitz"]
[Site "Chess.com"]
[Date "2021.02.16"]
[Round "6"]
[White "fyall777"]
[Black "GM_Crest"]
[Result "0-1"]
[WhiteElo "2513"]
[BlackElo "2738"]
[TimeControl "180+1"]
[EndTime "11:08:07 PST"]
[Termination "GM_Crest won on time"]

1. d4 {[%clk 0:02:11]} 1... Nf6 {[%clk 0:02:11.4]} 2. c4 {[%clk 0:02:09.1]} 2...
c5 {[%clk 0:02:11.3]} 3. d5 {[%clk 0:02:08.7]} 3... b5 {[%clk 0:02:11.4]} 4. Nc3
{[%clk 0:02:08.8]} 4... b4 {[%clk 0:02:10.3]} 5. Na4 {[%clk 0:02:08]} 5... d6
{[%clk 0:02:05]} 6. f3 {[%clk 0:01:51.1]} 6... Bd7 {[%clk 0:02:04.3]} 7. e4
{[%clk 0:01:38.3]} 7... Qa5 {[%clk 0:02:00.3]} 8. b3 {[%clk 0:01:37.9]} 8...
Bxa4 {[%clk 0:02:00.1]} 9. bxa4 {[%clk 0:01:38]} 9... Nbd7 {[%clk 0:02:00.6]}
10. Bd2 {[%clk 0:01:36.3]} 10... Qb6 {[%clk 0:01:57.7]} 11. Bd3 {[%clk
0:01:32.7]} 11... g6 {[%clk 0:01:57]} 12. Ne2 {[%clk 0:01:32]} 12... Bg7 {[%clk
0:01:57.2]} 13. O-O {[%clk 0:01:32.1]} 13... O-O {[%clk 0:01:56.4]} 14. Rb1
{[%clk 0:01:32.1]} 14... Qa6 {[%clk 0:01:52]} 15. Qb3 {[%clk 0:01:23.8]} 15...
Ne5 {[%clk 0:01:49.5]} 16. Nc1 {[%clk 0:01:14.2]} 16... Nxd3 {[%clk 0:01:48.6]}
17. Nxd3 {[%clk 0:01:12.4]} 17... Nd7 {[%clk 0:01:49]} 18. a3 {[%clk 0:01:10.3]}
18... Nb6 {[%clk 0:01:10.7]} 19. Rfc1 {[%clk 0:00:59.4]} 19... bxa3 {[%clk
0:00:37.4]} 20. a5 {[%clk 0:00:55.7]} 20... Nxc4 {[%clk 0:00:37.6]} 21. Rxc4
{[%clk 0:00:39.1]} 21... Rab8 {[%clk 0:00:37.1]} 22. Nb4 {[%clk 0:00:31]} 22...
Qxa5 {[%clk 0:00:13.7]} 23. Kh1 {[%clk 0:00:15.6]} 23... cxb4 {[%clk 0:00:13.1]}
24. Bxb4 {[%clk 0:00:14.9]} 24... a2 {[%clk 0:00:12.7]} 25. Rg1 {[%clk
0:00:07.1]} 25... a1=Q {[%clk 0:00:12.3]} 26. Bxa5 {[%clk 0:00:07.2]} 26... Rxb3
{[%clk 0:00:09.9]} 27. Rxa1 {[%clk 0:00:05.4]} 27... Bxa1 {[%clk 0:00:10.5]} 28.
h4 {[%clk 0:00:03.8]} 28... Ra3 {[%clk 0:00:09.6]} 29. Be1 {[%clk 0:00:02.3]}
29... Bf6 {[%clk 0:00:09.5]} 0-1

[Event "*** Titled Tuesday Blitz"]
[Site "Chess.com"]
[Date "2021.02.16"]
[Round "6"]
[White "jens1102"]
[Black "Sir_Frankie_Crisp"]
[Result "0-1"]
[WhiteElo "2418"]
[BlackElo "2316"]
[TimeControl "180+1"]
[EndTime "11:08:09 PST"]
[Termination "Sir_Frankie_Crisp won by resignation"]

1. e4 {[%clk 0:03:00.9]} 1... c5 {[%clk 0:03:00]} 2. Nf3 {[%clk 0:03:01.2]} 2...
d6 {[%clk 0:02:58.9]} 3. d4 {[%clk 0:03:01.7]} 3... cxd4 {[%clk 0:02:59.8]} 4.
Nxd4 {[%clk 0:03:02.2]} 4... Nf6 {[%clk 0:02:59]} 5. Nc3 {[%clk 0:03:02.6]} 5...
Nc6 {[%clk 0:02:59.1]} 6. Be3 {[%clk 0:03:01.9]} 6... Ng4 {[%clk 0:02:58.4]} 7.
Bg5 {[%clk 0:03:01.8]} 7... Qb6 {[%clk 0:02:57.6]} 8. Nd5 {[%clk 0:02:28.8]}
8... Qxd4 {[%clk 0:02:52.4]} 9. Qxd4 {[%clk 0:02:01.2]} 9... Nxd4 {[%clk
0:02:51.4]} 10. Rd1 {[%clk 0:02:01]} 10... Ne6 {[%clk 0:02:41.6]} 11. h3 {[%clk
0:01:58.9]} 11... Ne5 {[%clk 0:02:30]} 12. f4 {[%clk 0:01:55.7]} 12... Nc6
{[%clk 0:02:20.6]} 13. Bb5 {[%clk 0:01:50]} 13... Kd8 {[%clk 0:02:01.9]} 14. O-O
{[%clk 0:01:38.7]} 14... Nxg5 {[%clk 0:01:59.3]} 15. fxg5 {[%clk 0:01:39.6]}
15... Be6 {[%clk 0:01:58.1]} 16. Nf4 {[%clk 0:01:40]} 16... Bd7 {[%clk
0:01:38.7]} 17. Nd3 {[%clk 0:01:29.3]} 17... Ke8 {[%clk 0:01:34]} 18. a4 {[%clk
0:01:17.2]} 18... e6 {[%clk 0:01:31]} 19. c3 {[%clk 0:01:04.7]} 19... Be7 {[%clk
0:01:31]} 20. h4 {[%clk 0:01:03.5]} 20... h6 {[%clk 0:01:31.4]} 21. g6 {[%clk
0:01:01.7]} 21... fxg6 {[%clk 0:01:30.7]} 22. Nf4 {[%clk 0:01:00.7]} 22... Rf8
{[%clk 0:01:26]} 23. Nxg6 {[%clk 0:00:58.2]} 23... Rxf1+ {[%clk 0:01:24.5]} 24.
Rxf1 {[%clk 0:00:56.6]} 24... Bf6 {[%clk 0:01:24.7]} 25. Rd1 {[%clk 0:00:54.1]}
25... Ne5 {[%clk 0:01:14.2]} 26. Nf4 {[%clk 0:00:32.5]} 26... Bxb5 {[%clk
0:01:12]} 27. Nxe6 {[%clk 0:00:32.9]} 27... Kd7 {[%clk 0:00:54.3]} 28. Nc5+
{[%clk 0:00:28.3]} 28... Kc6 {[%clk 0:00:54.8]} 29. Nb3 {[%clk 0:00:16.6]} 29...
Bxa4 {[%clk 0:00:50.4]} 30. Nd4+ {[%clk 0:00:17.2]} 30... Kd7 {[%clk 0:00:42.1]}
31. b3 {[%clk 0:00:18.1]} 31... Bc6 {[%clk 0:00:41.7]} 32. Nf5 {[%clk 0:00:18]}
32... Bxe4 {[%clk 0:00:38.2]} 33. Nxd6 {[%clk 0:00:17.9]} 33... Bd3 {[%clk
0:00:27.7]} 34. Nc4 {[%clk 0:00:14.5]} 34... Nxc4 {[%clk 0:00:26.3]} 35. bxc4
{[%clk 0:00:14.7]} 35... Kc6 {[%clk 0:00:25]} 36. Rxd3 {[%clk 0:00:15]} 36...
Bxh4 {[%clk 0:00:24.3]} 37. g3 {[%clk 0:00:13.6]} 37... Bf6 {[%clk 0:00:24.9]}
38. Re3 {[%clk 0:00:12.8]} 38... a5 {[%clk 0:00:25]} 39. Re6+ {[%clk 0:00:12.3]}
39... Kc5 {[%clk 0:00:24.6]} 40. Re2 {[%clk 0:00:12.9]} 40... a4 {[%clk
0:00:25]} 41. Kg2 {[%clk 0:00:13.4]} 41... a3 {[%clk 0:00:25.3]} 42. Ra2 {[%clk
0:00:13.8]} 42... Kxc4 {[%clk 0:00:26]} 0-1

[Event "*** Titled Tuesday Blitz"]
[Site "Chess.com"]
[Date "2021.02.16"]
[Round "6"]
[White "PawnEatingZombie"]
[Black "Ladislav1969"]
[Result "0-1"]
[WhiteElo "2147"]
[BlackElo "2315"]
[TimeControl "180+1"]
[EndTime "11:08:10 PST"]
[Termination "Ladislav1969 won on time"]

1. d4 {[%clk 0:03:00.9]} 1... Nf6 {[%clk 0:03:00.1]} 2. c4 {[%clk 0:03:01.3]}
2... g6 {[%clk 0:03:00.5]} 3. Nc3 {[%clk 0:03:01.8]} 3... d5 {[%clk 0:03:01.1]}
4. cxd5 {[%clk 0:03:01.8]} 4... Nxd5 {[%clk 0:03:02]} 5. e4 {[%clk 0:03:02]}
5... Nxc3 {[%clk 0:03:02.4]} 6. bxc3 {[%clk 0:03:02.9]} 6... c5 {[%clk
0:03:02.9]} 7. Nf3 {[%clk 0:03:03.1]} 7... Bg7 {[%clk 0:03:02.7]} 8. Be3 {[%clk
0:03:02]} 8... Bg4 {[%clk 0:03:02.4]} 9. Rc1 {[%clk 0:03:00.2]} 9... Qa5 {[%clk
0:02:50.8]} 10. Qd2 {[%clk 0:02:58.7]} 10... Bxf3 {[%clk 0:02:28.3]} 11. gxf3
{[%clk 0:02:56.6]} 11... O-O {[%clk 0:02:25.4]} 12. h4 {[%clk 0:02:44]} 12... h5
{[%clk 0:02:22.4]} 13. Be2 {[%clk 0:02:25.7]} 13... e6 {[%clk 0:01:51.1]} 14. d5
{[%clk 0:01:13.4]} 14... exd5 {[%clk 0:01:48.6]} 15. exd5 {[%clk 0:01:14.3]}
15... Nd7 {[%clk 0:01:44.7]} 16. c4 {[%clk 0:01:14.3]} 16... Qd8 {[%clk
0:01:36.6]} 17. f4 {[%clk 0:00:59.5]} 17... Qf6 {[%clk 0:01:30.7]} 18. Bd3
{[%clk 0:00:54.8]} 18... Rfe8 {[%clk 0:01:28.2]} 19. Kf1 {[%clk 0:00:49.5]}
19... Bh6 {[%clk 0:01:02.3]} 20. Rb1 {[%clk 0:00:41.5]} 20... b6 {[%clk
0:01:01.5]} 21. a4 {[%clk 0:00:40.9]} 21... Re7 {[%clk 0:01:00.4]} 22. a5 {[%clk
0:00:39.2]} 22... Rae8 {[%clk 0:01:00.5]} 23. axb6 {[%clk 0:00:33.7]} 23... axb6
{[%clk 0:01:01.4]} 24. Rh3 {[%clk 0:00:20.6]} 24... Kh7 {[%clk 0:00:49]} 25. f5
{[%clk 0:00:18.5]} 25... Bxe3 {[%clk 0:00:46.8]} 26. Rxe3 {[%clk 0:00:18.3]}
26... Rxe3 {[%clk 0:00:41.7]} 27. fxe3 {[%clk 0:00:18.7]} 27... Qxh4 {[%clk
0:00:41.4]} 28. fxg6+ {[%clk 0:00:18.8]} 28... fxg6 {[%clk 0:00:41.5]} 29. Ke2
{[%clk 0:00:09.8]} 29... Ne5 {[%clk 0:00:24.4]} 30. Rxb6 {[%clk 0:00:04.3]}
30... Ng4 {[%clk 0:00:23.6]} 31. Bxg6+ {[%clk 0:00:02.7]} 31... Kg8 {[%clk
0:00:18.9]} 32. Bxe8 {[%clk 0:00:03.6]} 32... Qf2+ {[%clk 0:00:16.6]} 33. Kd1
{[%clk 0:00:04.1]} 33... Nxe3+ {[%clk 0:00:17.3]} 34. Kc1 {[%clk 0:00:04.6]}
34... Qf1+ {[%clk 0:00:17]} 0-1

[Event "*** Titled Tuesday Blitz"]
[Site "Chess.com"]
[Date "2021.02.16"]
[Round "6"]
[White "Mr_Sinigami"]
[Black "ChainsOfFantasia"]
[Result "1-0"]
[WhiteElo "2665"]
[BlackElo "2476"]
[TimeControl "180+1"]
[EndTime "11:08:13 PST"]
[Termination "Mr_Sinigami won by checkmate"]

1. d4 {[%clk 0:03:00.9]} 1... Nf6 {[%clk 0:02:59.3]} 2. Nf3 {[%clk 0:03:01.3]}
2... d5 {[%clk 0:02:58.1]} 3. Bf4 {[%clk 0:03:01.8]} 3... c5 {[%clk 0:02:58]} 4.
e3 {[%clk 0:03:02.1]} 4... Nc6 {[%clk 0:02:58.5]} 5. c3 {[%clk 0:03:02.1]} 5...
Qb6 {[%clk 0:02:58.6]} 6. Qc1 {[%clk 0:02:58.9]} 6... Bf5 {[%clk 0:02:58.3]} 7.
Nbd2 {[%clk 0:02:58.6]} 7... e6 {[%clk 0:02:57.7]} 8. a3 {[%clk 0:02:56.3]} 8...
h6 {[%clk 0:02:56.1]} 9. h3 {[%clk 0:02:54.4]} 9... Qd8 {[%clk 0:02:50.8]} 10.
Be2 {[%clk 0:02:50.8]} 10... Bd6 {[%clk 0:02:48.5]} 11. Bxd6 {[%clk 0:02:43.2]}
11... Qxd6 {[%clk 0:02:49.4]} 12. dxc5 {[%clk 0:02:35.4]} 12... Qxc5 {[%clk
0:02:50.3]} 13. b4 {[%clk 0:02:33.5]} 13... Qe7 {[%clk 0:02:48.7]} 14. c4 {[%clk
0:02:33.1]} 14... O-O {[%clk 0:02:44.4]} 15. O-O {[%clk 0:02:32]} 15... dxc4
{[%clk 0:02:43.3]} 16. Nxc4 {[%clk 0:02:31.3]} 16... Rac8 {[%clk 0:02:43.4]} 17.
Qb2 {[%clk 0:02:31.1]} 17... Rfd8 {[%clk 0:02:41.6]} 18. b5 {[%clk 0:02:24.9]}
18... Nb8 {[%clk 0:02:36]} 19. Rfd1 {[%clk 0:02:24.4]} 19... Nbd7 {[%clk
0:02:34.2]} 20. Nd6 {[%clk 0:02:21.6]} 20... Rb8 {[%clk 0:02:24]} 21. Nxf5
{[%clk 0:02:09.9]} 21... exf5 {[%clk 0:02:24.9]} 22. g3 {[%clk 0:02:09.5]} 22...
Ne4 {[%clk 0:02:24.1]} 23. Bc4 {[%clk 0:02:03.1]} 23... Nb6 {[%clk 0:02:20.5]}
24. Bb3 {[%clk 0:01:54.2]} 24... Rbc8 {[%clk 0:02:09.4]} 25. Ne5 {[%clk
0:01:43.7]} 25... Rxd1+ {[%clk 0:01:47.2]} 26. Rxd1 {[%clk 0:01:41.8]} 26... Rc5
{[%clk 0:01:48.1]} 27. Nxf7 {[%clk 0:01:35.8]} 27... Kh7 {[%clk 0:01:34]} 28. a4
{[%clk 0:01:35]} 28... Nxg3 {[%clk 0:01:16.2]} 29. Kh2 {[%clk 0:01:17.7]} 29...
Ne4 {[%clk 0:00:59.3]} 30. Rg1 {[%clk 0:01:17]} 30... Nf6 {[%clk 0:00:49.8]} 31.
Qd4 {[%clk 0:01:11.1]} 31... Nbd5 {[%clk 0:00:35.8]} 32. Ne5 {[%clk 0:01:03.6]}
32... Nxe3 {[%clk 0:00:32.4]} 33. Ng6 {[%clk 0:00:54.5]} 33... Qc7+ {[%clk
0:00:30.7]} 34. f4 {[%clk 0:00:51.1]} 34... Ned5 {[%clk 0:00:21.5]} 35. Nf8+
{[%clk 0:00:50.7]} 35... Kg8 {[%clk 0:00:21.5]} 36. Ne6 {[%clk 0:00:50.6]} 36...
Rc2+ {[%clk 0:00:19.9]} 37. Bxc2 {[%clk 0:00:50.1]} 37... Qxc2+ {[%clk
0:00:20.8]} 38. Rg2 {[%clk 0:00:50.2]} 38... Qc1 {[%clk 0:00:17.8]} 39. Rxg7+
{[%clk 0:00:40.2]} 39... Kh8 {[%clk 0:00:17.9]} 40. Qg1 {[%clk 0:00:40.3]} 40...
Qd2+ {[%clk 0:00:14.7]} 41. Rg2 {[%clk 0:00:39.1]} 41... Qe3 {[%clk 0:00:11.2]}
42. Rg8+ {[%clk 0:00:38.2]} 42... Nxg8 {[%clk 0:00:06.8]} 43. Qg7# {[%clk
0:00:39.1]} 1-0

[Event "*** Titled Tuesday Blitz"]
[Site "Chess.com"]
[Date "2021.02.16"]
[Round "6"]
[White "NemtsevIgor"]
[Black "Titus369"]
[Result "0-1"]
[WhiteElo "2363"]
[BlackElo "2560"]
[TimeControl "180+1"]
[EndTime "11:08:14 PST"]
[Termination "Titus369 won on time"]

1. d4 {[%clk 0:03:00.9]} 1... d5 {[%clk 0:02:57]} 2. Bf4 {[%clk 0:03:00.6]} 2...
Nf6 {[%clk 0:02:55.6]} 3. e3 {[%clk 0:03:00.8]} 3... e6 {[%clk 0:02:55.6]} 4.
Nd2 {[%clk 0:02:59.8]} 4... Bd6 {[%clk 0:02:55.9]} 5. Bg3 {[%clk 0:02:59.3]}
5... O-O {[%clk 0:02:53]} 6. Bd3 {[%clk 0:02:58.7]} 6... Nbd7 {[%clk 0:02:51.7]}
7. Ngf3 {[%clk 0:02:56.8]} 7... b6 {[%clk 0:02:48.3]} 8. Ne5 {[%clk 0:02:51.8]}
8... Bb7 {[%clk 0:02:47.6]} 9. Qf3 {[%clk 0:02:29.5]} 9... Qe7 {[%clk 0:02:40]}
10. c3 {[%clk 0:02:25.6]} 10... c5 {[%clk 0:02:37.6]} 11. O-O {[%clk 0:02:16.8]}
11... Rac8 {[%clk 0:02:17]} 12. Nxd7 {[%clk 0:02:09.4]} 12... Nxd7 {[%clk
0:02:09.9]} 13. Bxd6 {[%clk 0:02:09.4]} 13... Qxd6 {[%clk 0:02:10.7]} 14. Qh5
{[%clk 0:02:08.7]} 14... g6 {[%clk 0:02:10.7]} 15. Qh6 {[%clk 0:02:08.2]} 15...
e5 {[%clk 0:02:10.5]} 16. Bf5 {[%clk 0:01:34.5]} 16... exd4 {[%clk 0:02:01.6]}
17. exd4 {[%clk 0:01:31.9]} 17... cxd4 {[%clk 0:01:46]} 18. cxd4 {[%clk
0:01:29.6]} 18... Rce8 {[%clk 0:01:46.1]} 19. Bxd7 {[%clk 0:01:28.7]} 19... Qxd7
{[%clk 0:01:47]} 20. Nf3 {[%clk 0:01:27.6]} 20... f6 {[%clk 0:01:47.3]} 21. h4
{[%clk 0:01:25.4]} 21... Re4 {[%clk 0:01:32.7]} 22. Rac1 {[%clk 0:01:17.3]}
22... Rg4 {[%clk 0:01:29.6]} 23. Rfe1 {[%clk 0:01:06.1]} 23... Ba6 {[%clk
0:01:19.2]} 24. Qe3 {[%clk 0:00:58]} 24... Re4 {[%clk 0:01:11.2]} 25. Qa3 {[%clk
0:00:54.4]} 25... Be2 {[%clk 0:01:09.5]} 26. Nd2 {[%clk 0:00:42.5]} 26... Ree8
{[%clk 0:01:07.4]} 27. Qg3 {[%clk 0:00:36.8]} 27... Rf7 {[%clk 0:01:02.5]} 28.
Rc3 {[%clk 0:00:31.6]} 28... Ba6 {[%clk 0:00:58.9]} 29. Rec1 {[%clk 0:00:26.3]}
29... Rfe7 {[%clk 0:00:45.1]} 30. Nf3 {[%clk 0:00:24.1]} 30... Be2 {[%clk
0:00:39.8]} 31. Rc7 {[%clk 0:00:22.8]} 31... Qe6 {[%clk 0:00:37.3]} 32. h5
{[%clk 0:00:20.8]} 32... Kg7 {[%clk 0:00:28.1]} 33. h6+ {[%clk 0:00:20.1]} 33...
Kxh6 {[%clk 0:00:26.2]} 34. Qh4+ {[%clk 0:00:14]} 34... Kg7 {[%clk 0:00:25.5]}
35. Re1 {[%clk 0:00:13.7]} 35... Rxc7 {[%clk 0:00:24.5]} 36. Qf4 {[%clk
0:00:10.3]} 36... Rce7 {[%clk 0:00:23.1]} 37. g4 {[%clk 0:00:08.7]} 37... Qe4
{[%clk 0:00:18.6]} 0-1